Workbook

Sheet Stavba
C2: Položkový rozpočet stavby | H2: Datum: | I2: =TODAY() -> 2024-04-22
C5: Stavba : | D5: 3391 | E5: Chuchelna - výměna technologie ČOV
C7: Objednatel : | D7: Vodohospodářské sdružení Turnov | H7: IČO : | I7: 49295934
D8: Antonína Dvořáka 287 | H8: DIČ : | I8: CZ49295934
C9: 51101 | D9: Turnov
C11: Zhotovitel : | D11: . | H11: IČO :
H12: DIČ :
C14: Za zhotovitele : | H14: Za objednatele :
C16: _______________ | H16: _______________
J18: Rozpočtové náklady
B19: Základ pro DPH | D19: 15 | E19: % | I19: =ROUND(G32,0) -> 0
B20: DPH | D20: =SazbaDPH1 -> 15 | E20: % | I20: =ROUND(I19*D20/100,0) -> 0
B21: Základ pro DPH | D21: 21 | E21: % | I21: =ROUND(H32,0) -> 50000
B22: DPH | D22: =SazbaDPH2 -> 21 | E22: % | I22: =ROUND(I21*D21/100,0) -> 10500
B23: Cena celkem za stavbu | I23: =SUM(I19:I22) -> 60500
B26: Rekapitulace stavebních objektů a provozních souborů
B28: Číslo a název objektu / provozního souboru | F28: Cena celkem | G28: =CONCATENATE("Základ DPH ",SazbaDPH1," %") -> Základ DPH 15 % | H28: =CONCATENATE("Základ DPH ",SazbaDPH2," %") -> Základ DPH 21 % | I28: DPH celkem | J28: %
B29: 300 | C29: Oprava a doplnění stávající ČOV | F29: =G29+H29+I29 -> 0 | G29: 0 | H29: =SUM(H37) -> 0 | I29: =(G29*SazbaDPH1)/100+(H29*SazbaDPH2)/100 -> 0 | J29: =IF(CelkemObjekty=0,"",F29/CelkemObjekty*100) -> 0
B30: OaVNS | C30: Ostatní a vedlejší náklady stavby | F30: =G30+H30+I30 -> 0 | G30: 0 | H30: =SUM(OaVNS!G22) -> 0 | I30: 0 | J30: 0
B31: PR | C31: Povinná rezerva | F31: 60500 | G31: 0 | H31: 50000 | I31: 10500 | J31: 100
B32: Celkem za stavbu | F32: =SUM(F29:F31) -> 60500 | G32: =SUM(G29:G31) -> 0 | H32: =SUM(H29:H31) -> 50000 | I32: =SUM(I29:I31) -> 10500 | J32: =IF(CelkemObjekty=0,"",F32/CelkemObjekty*100) -> 100
B34: Rekapitulace stavebních rozpočtů
B36: Číslo objektu | C36: Číslo a název rozpočtu | F36: Cena celkem | G36: =CONCATENATE("Základ DPH ",SazbaDPH1," %") -> Základ DPH 15 % | H36: =CONCATENATE("Základ DPH ",SazbaDPH2," %") -> Základ DPH 21 % | I36: DPH celkem | J36: %
B37: 300 | C37: 3390/300 Oprava a doplnění stávající ČOV | F37: =G37+H37+I37 -> 0 | G37: 0 | H37: =SUM('300 3390300 KL'!C23) -> 0 | I37: =(G37*SazbaDPH1)/100+(H37*SazbaDPH2)/100 -> 0 | J37: =IF(CelkemObjekty=0,"",F37/CelkemObjekty*100) -> 0
B38: Celkem za stavbu | F38: =SUM(F37:F37) -> 0 | G38: =SUM(G37:G37) -> 0 | H38: =SUM(H37:H37) -> 0 | I38: =SUM(I37:I37) -> 0 | J38: =IF(CelkemObjekty=0,"",F38/CelkemObjekty*100) -> 0

Sheet 300 3390300 KL
A1: POLOŽKOVÝ ROZPOČET
A2: Rozpočet | C2: 3390/300 | D2: Oprava a doplnění stávající ČOV | F2: JKSO | G2: 814.19
A4: Objekt | F4: SKP
A5: 300 | C5: Oprava a doplnění stávající ČOV | F5: Měrná jednotka | G5: m3
A6: Stavba | F6: Počet jednotek | G6: 0
A7: 3391 | C7: Oprava a doplnění stávající ČOV Chuchelna | F7: Náklady na m.j. | G7: =IF(G6=0,,ROUND((F30+F32)/G6,1)) -> 0
A8: Projektant | C8: BMTO GROUP a.s. | F8: Typ rozpočtu
A9: Zpracovatel projektu
A10: Objednatel | C10: Vodohospodářské sdružení Turnov
A11: Dodavatel | C11: . | F11: Zakázkové číslo
A12: Rozpočtoval | F12: Počet listů
A13: ROZPOČTOVÉ NÁKLADY
A14: Základní rozpočtové náklady
B15: HSV celkem | C15: ='300 3390300 Rek'!E17 -> 0
A16: Z | B16: PSV celkem | C16: ='300 3390300 Rek'!F17 -> 0
A17: R | B17: M práce celkem | C17: ='300 3390300 Rek'!H17 -> 0
A18: N | B18: M dodávky celkem | C18: ='300 3390300 Rek'!G17 -> 0
A19: ZRN celkem | C19: =SUM(C15:C18) -> 0
A21: HZS | C21: ='300 3390300 Rek'!I17 -> 0
A22: ZRN+HZS | C22: =C19+C21 -> 0
A23: ZRN+ost.náklady+HZS | C23: =C22+G23 -> 0
A24: Vypracoval | D24: Za zhotovitele | F24: Za objednatele
A25: Jméno : | D25: Jméno : | F25: Jméno :
A26: Datum : | D26: Datum : | F26: Datum :
A28: Podpis : | D28: Podpis: | F28: Podpis:
A30: Základ pro DPH | C30: 21 | D30: % | F30: =C23-F32 -> 0
A31: DPH | C31: =C30 -> 21 | D31: % | F31: =ROUND(PRODUCT(F30,C31/100),0) -> 0
A32: Základ pro DPH | C32: 0 | D32: % | F32: 0
A33: DPH | C33: =C32 -> 0 | D33: % | F33: =ROUND(PRODUCT(F32,C33/100),0) -> 0
A34: CENA ZA OBJEKT CELKEM | F34: =ROUND(SUM(F30:F33),0) -> 0
A36: Poznámka :

Sheet 300 3390300 Rek
A1: Stavba : | C1: 3391 Chuchelna - výměna technologie ČOV | G1: Rozpočet : | H1: 3390/300
A2: Objekt : | C2: 300 Chuchelna - výměna technologie ČOV | G2: Oprava a doplnění stávající ČOV
A4: REKAPITULACE STAVEBNÍCH DÍLŮ
B6: Stavební díl | E6: HSV | F6: PSV | G6: Dodávka | H6: Montáž | I6: HZS
A7: ='300 3390300 Pol'!B7 -> 1 | B7: ='300 3390300 Pol'!C7 -> Zemní práce | E7: ='300 3390300 Pol'!BA40 -> 0 | F7: ='300 3390300 Pol'!BB40 -> 0 | G7: ='300 3390300 Pol'!BC40 -> 0 | H7: ='300 3390300 Pol'!BD40 -> 0 | I7: ='300 3390300 Pol'!BE40 -> 0
A8: ='300 3390300 Pol'!B41 -> 3 | B8: ='300 3390300 Pol'!C41 -> Svislé a kompletní konstrukce | E8: ='300 3390300 Pol'!BA48 -> 0 | F8: ='300 3390300 Pol'!BB48 -> 0 | G8: ='300 3390300 Pol'!BC48 -> 0 | H8: ='300 3390300 Pol'!BD48 -> 0 | I8: ='300 3390300 Pol'!BE48 -> 0
A9: ='300 3390300 Pol'!B49 -> 38 | B9: ='300 3390300 Pol'!C49 -> Kompletní konstrukce | E9: ='300 3390300 Pol'!BA55 -> 0 | F9: ='300 3390300 Pol'!BB55 -> 0 | G9: ='300 3390300 Pol'!BC55 -> 0 | H9: ='300 3390300 Pol'!BD55 -> 0 | I9: ='300 3390300 Pol'!BE55 -> 0
A10: ='300 3390300 Pol'!B56 -> 45 | B10: ='300 3390300 Pol'!C56 -> Podkladní a vedlejší konstrukce | E10: ='300 3390300 Pol'!BA59 -> 0 | F10: ='300 3390300 Pol'!BB59 -> 0 | G10: ='300 3390300 Pol'!BC59 -> 0 | H10: ='300 3390300 Pol'!BD59 -> 0 | I10: ='300 3390300 Pol'!BE59 -> 0
A11: ='300 3390300 Pol'!B60 -> 8 | B11: ='300 3390300 Pol'!C60 -> Trubní vedení | E11: ='300 3390300 Pol'!BA68 -> 0 | F11: ='300 3390300 Pol'!BB68 -> 0 | G11: ='300 3390300 Pol'!BC68 -> 0 | H11: ='300 3390300 Pol'!BD68 -> 0 | I11: ='300 3390300 Pol'!BE68 -> 0
A12: ='300 3390300 Pol'!B69 -> 99 | B12: ='300 3390300 Pol'!C69 -> Staveništní přesun hmot | E12: ='300 3390300 Pol'!BA71 -> 0 | F12: ='300 3390300 Pol'!BB71 -> 0 | G12: ='300 3390300 Pol'!BC71 -> 0 | H12: ='300 3390300 Pol'!BD71 -> 0 | I12: ='300 3390300 Pol'!BE71 -> 0
A13: ='300 3390300 Pol'!B72 -> 762 | B13: ='300 3390300 Pol'!C72 -> Konstrukce tesařské | E13: ='300 3390300 Pol'!BA74 -> 0 | F13: ='300 3390300 Pol'!BB74 -> 0 | G13: ='300 3390300 Pol'!BC74 -> 0 | H13: ='300 3390300 Pol'!BD74 -> 0 | I13: ='300 3390300 Pol'!BE74 -> 0
A14: ='300 3390300 Pol'!B75 -> 767 | B14: ='300 3390300 Pol'!C75 -> Konstrukce zámečnické | E14: ='300 3390300 Pol'!BA81 -> 0 | F14: ='300 3390300 Pol'!BB81 -> 0 | G14: ='300 3390300 Pol'!BC81 -> 0 | H14: ='300 3390300 Pol'!BD81 -> 0 | I14: ='300 3390300 Pol'!BE81 -> 0
A15: ='300 3390300 Pol'!B82 -> M21Č | B15: ='300 3390300 Pol'!C82 -> Elektromontáže ČOV | E15: ='300 3390300 Pol'!BA84 -> 0 | F15: ='300 3390300 Pol'!BB84 -> 0 | G15: ='300 3390300 Pol'!BC84 -> 0 | H15: ='300 3390300 Pol'!BD84 -> 0 | I15: ='300 3390300 Pol'!BE84 -> 0
A16: ='300 3390300 Pol'!B85 -> M35.4 | B16: ='300 3390300 Pol'!C85 -> Technologie ČOV | E16: ='300 3390300 Pol'!BA99 -> 0 | F16: ='300 3390300 Pol'!BB99 -> 0 | G16: ='300 3390300 Pol'!BC99 -> 0 | H16: ='300 3390300 Pol'!BD99 -> 0 | I16: ='300 3390300 Pol'!BE99 -> 0
B17: CELKEM OBJEKT | E17: =SUM(E7:E16) -> 0 | F17: =SUM(F7:F16) -> 0 | G17: =SUM(G7:G16) -> 0 | H17: =SUM(H7:H16) -> 0 | I17: =SUM(I7:I16) -> 0

Sheet 300 3390300 Pol
A1: Položkový rozpočet
A3: Stavba : | C3: 3391 Chuchelna - výměna technologie ČOV | E3: Rozpočet: | F3: ='300 3390300 Rek'!H1 -> 3390/300
A4: Objekt : | C4: 300 Chuchelna - výměna technologie ČOV | E4: ='300 3390300 Rek'!G2 -> Oprava a doplnění stávající ČOV
A6: P.č. | B6: Číslo položky | C6: Název položky | D6: MJ | E6: množství | F6: cena / MJ | G6: celkem (Kč) | H6: Jednotková hmotnost | I6: Celková hmotnost | J6: Jednotková dem.hmot. | K6: Celková dem.hmot.
A7: Díl: | B7: 1 | C7: Zemní práce | O7: 1
A8: 1 | B8: 139601102R00 | C8: Ruční výkop jam, rýh a šachet v hornině tř. 3 | D8: m3 | E8: 20.8 | F8: 0 | G8: =E8*F8 -> 0 | H8: 0 | I8: =E8*H8 -> 0 | J8: 0 | K8: =E8*J8 -> 0 | O8: 2 | AA8: 1 | AB8: 1 | AC8: 1 | AZ8: 1 | BA8: =IF(AZ8=1,G8,0) -> 0 | BB8: =IF(AZ8=2,G8,0) -> 0 | BC8: =IF(AZ8=3,G8,0) -> 0 | BD8: =IF(AZ8=4,G8,0) -> 0 | BE8: =IF(AZ8=5,G8,0) -> 0 | CA8: 1 | CB8: 1
C9: ČOV - výkopy pro dmychadlo, potrubí :3,20*3,00*1,50 | E9: 14.4 | M9: ČOV - výkopy pro dmychadlo, potrubí :3,20*3,00*1,50
C10: ČOV -výkopy pro RŠ:1,60*1,60*2,50 | E10: 6.4 | M10: ČOV -výkopy pro RŠ:1,60*1,60*2,50
A11: 2 | B11: 162201203R00 | C11: Vodorovné přemíst.výkopku, kolečko hor.1-4, do 10m | D11: m3 | E11: 31.1 | F11: 0 | G11: =E11*F11 -> 0 | H11: 0 | I11: =E11*H11 -> 0 | J11: 0 | K11: =E11*J11 -> 0 | O11: 2 | AA11: 1 | AB11: 1 | AC11: 1 | AZ11: 1 | BA11: =IF(AZ11=1,G11,0) -> 0 | BB11: =IF(AZ11=2,G11,0) -> 0 | BC11: =IF(AZ11=3,G11,0) -> 0 | BD11: =IF(AZ11=4,G11,0) -> 0 | BE11: =IF(AZ11=5,G11,0) -> 0 | CA11: 1 | CB11: 1
C12: Výkopy: | E12: 0 | F12: 0 | M12: Výkopy:
C13: ČOV - výkopy pro dmychadlo, potrubí :3,20*3,00*1,50 | E13: 14.4 | M13: ČOV - výkopy pro dmychadlo, potrubí :3,20*3,00*1,50
C14: ČOV -výkopy pro RŠ:1,60*1,60*2,50 | E14: 6.4 | M14: ČOV -výkopy pro RŠ:1,60*1,60*2,50
C15: Zemina pro zásypy: | E15: 0 | M15: Zemina pro zásypy:
C16: Výkop:20,8000 | E16: 20.8 | M16: Výkop:20,8000
C17: Odpočet objemu konstrukcí, lože, potrubí a obsypů:-10,5000 | E17: -10.5 | M17: Odpočet objemu konstrukcí, lože, potrubí a obsypů:-10,5000
A18: 3 | B18: 162701105RSZ | C18: Vodorovné přemístění výkopku z hor.1-7 na skládku zhotovitele | D18: m3 | E18: 10.5 | F18: 0 | G18: =E18*F18 -> 0 | H18: 0 | I18: =E18*H18 -> 0 | J18: 0 | K18: =E18*J18 -> 0 | O18: 2 | AA18: 1 | AB18: 1 | AC18: 1 | AZ18: 1 | BA18: =IF(AZ18=1,G18,0) -> 0 | BB18: =IF(AZ18=2,G18,0) -> 0 | BC18: =IF(AZ18=3,G18,0) -> 0 | BD18: =IF(AZ18=4,G18,0) -> 0 | BE18: =IF(AZ18=5,G18,0) -> 0 | CA18: 1 | CB18: 1
C19: Výkopy: | E19: 0 | M19: Výkopy:
C20: ČOV - výkopy pro dmychadlo, potrubí :3,20*3,00*1,50 | E20: 14.4 | M20: ČOV - výkopy pro dmychadlo, potrubí :3,20*3,00*1,50
C21: ČOV -výkopy pro RŠ:1,60*1,60*2,50 | E21: 6.4 | M21: ČOV -výkopy pro RŠ:1,60*1,60*2,50
C22: Odpočet zásypů zeminou:-10,3000 | E22: -10.3 | M22: Odpočet zásypů zeminou:-10,3000
A23: 4 | B23: 167101101R00 | C23: Nakládání výkopku z hor.1-4 v množství do 100 m3 | D23: m3 | E23: 20.8 | F23: 0 | G23: =E23*F23 -> 0 | H23: 0 | I23: =E23*H23 -> 0 | J23: 0 | K23: =E23*J23 -> 0 | O23: 2 | AA23: 1 | AB23: 1 | AC23: 1 | AZ23: 1 | BA23: =IF(AZ23=1,G23,0) -> 0 | BB23: =IF(AZ23=2,G23,0) -> 0 | BC23: =IF(AZ23=3,G23,0) -> 0 | BD23: =IF(AZ23=4,G23,0) -> 0 | BE23: =IF(AZ23=5,G23,0) -> 0 | CA23: 1 | CB23: 1
C24: Výkopy: | E24: 0 | M24: Výkopy:
C25: ČOV - výkopy pro dmychadlo, potrubí :3,20*3,00*1,50 | E25: 14.4 | M25: ČOV - výkopy pro dmychadlo, potrubí :3,20*3,00*1,50
C26: ČOV -výkopy pro RŠ:1,60*1,60*2,50 | E26: 6.4 | M26: ČOV -výkopy pro RŠ:1,60*1,60*2,50
A27: 5 | B27: 174101102R00 | C27: Zásyp ruční se zhutněním | D27: m3 | E27: 10.3 | F27: 0 | G27: =E27*F27 -> 0 | H27: 0 | I27: =E27*H27 -> 0 | J27: 0 | K27: =E27*J27 -> 0 | O27: 2 | AA27: 1 | AB27: 1 | AC27: 1 | AZ27: 1 | BA27: =IF(AZ27=1,G27,0) -> 0 | BB27: =IF(AZ27=2,G27,0) -> 0 | BC27: =IF(AZ27=3,G27,0) -> 0 | BD27: =IF(AZ27=4,G27,0) -> 0 | BE27: =IF(AZ27=5,G27,0) -> 0 | CA27: 1 | CB27: 1
C28: Zemina pro zásypy: | E28: 0 | M28: Zemina pro zásypy:
C29: Výkop:20,8000 | E29: 20.8 | M29: Výkop:20,8000
C30: Odpočet objemu konstrukcí, lože, potrubí a obsypů:-10,5000 | E30: -10.5 | M30: Odpočet objemu konstrukcí, lože, potrubí a obsypů:-10,5000
A31: 6 | B31: 175101101R00 | C31: Obsyp potrubí bez prohození sypaniny | D31: m3 | E31: 2.65 | F31: 0 | G31: =E31*F31 -> 0 | H31: 0 | I31: =E31*H31 -> 0 | J31: 0 | K31: =E31*J31 -> 0 | O31: 2 | AA31: 1 | AB31: 1 | AC31: 1 | AZ31: 1 | BA31: =IF(AZ31=1,G31,0) -> 0 | BB31: =IF(AZ31=2,G31,0) -> 0 | BC31: =IF(AZ31=3,G31,0) -> 0 | BD31: =IF(AZ31=4,G31,0) -> 0 | BE31: =IF(AZ31=5,G31,0) -> 0 | CA31: 1 | CB31: 1
C32: ČOV - Potrubí:2,65 | E32: 2.65 | M32: ČOV - Potrubí:2,65
A33: 7 | B33: 199000002R00 | C33: Poplatek za skládku horniny 1- 7 č. dle katal. odpadů 17 05 04 | D33: m3 | E33: 10.5 | F33: 0 | G33: =E33*F33 -> 0 | H33: 0 | I33: =E33*H33 -> 0 | J33: 0 | K33: =E33*J33 -> 0 | O33: 2 | AA33: 1 | AB33: 1 | AC33: 1 | AZ33: 1 | BA33: =IF(AZ33=1,G33,0) -> 0 | BB33: =IF(AZ33=2,G33,0) -> 0 | BC33: =IF(AZ33=3,G33,0) -> 0 | BD33: =IF(AZ33=4,G33,0) -> 0 | BE33: =IF(AZ33=5,G33,0) -> 0 | CA33: 1 | CB33: 1
C34: Výkopy: | E34: 0 | M34: Výkopy:
C35: ČOV - výkopy pro dmychadlo, potrubí :3,20*3,00*1,50 | E35: 14.4 | M35: ČOV - výkopy pro dmychadlo, potrubí :3,20*3,00*1,50
C36: ČOV -výkopy pro RŠ:1,60*1,60*2,50 | E36: 6.4 | M36: ČOV -výkopy pro RŠ:1,60*1,60*2,50
C37: Odpočet zásypů zeminou:-10,3000 | E37: -10.3 | M37: Odpočet zásypů zeminou:-10,3000
A38: 8 | B38: 58337309.R | C38: Štěrkopísek frakce 0-4 tř.B | D38: t | E38: 5.2807 | F38: 0 | G38: =E38*F38 -> 0 | H38: 1 | I38: =E38*H38 -> 5.2807 | K38: =E38*J38 -> 0 | O38: 2 | AA38: 3 | AB38: 1 | AC38: 58337309.R | AZ38: 1 | BA38: =IF(AZ38=1,G38,0) -> 0 | BB38: =IF(AZ38=2,G38,0) -> 0 | BC38: =IF(AZ38=3,G38,0) -> 0 | BD38: =IF(AZ38=4,G38,0) -> 0 | BE38: =IF(AZ38=5,G38,0) -> 0 | CA38: 3 | CB38: 1
C39: ČOV - Potrubí:2,65*1,973*1,01 | E39: 5.2807 | M39: ČOV - Potrubí:2,65*1,973*1,01
B40: Celkem za | C40: 1 Zemní práce | G40: =SUM(G7:G39) -> 0 | I40: =SUM(I7:I39) -> 5.2807 | K40: =SUM(K7:K39) -> 0 | O40: 4 | BA40: =SUM(BA7:BA39) -> 0 | BB40: =SUM(BB7:BB39) -> 0 | BC40: =SUM(BC7:BC39) -> 0 | BD40: =SUM(BD7:BD39) -> 0 | BE40: =SUM(BE7:BE39) -> 0
A41: Díl: | B41: 3 | C41: Svislé a kompletní konstrukce | O41: 1
A42: 9 | B42: 380321341R00 | C42: Beton komplet.konstrukcí železový C 20/25 do 15 cm C 20/25 - XC2 | D42: m3 | E42: 3.0899 | G42: =E42*F42 -> 0 | H42: 2.61028 | I42: =E42*H42 -> 8.065504172 | J42: 0 | K42: =E42*J42 -> 0 | O42: 2 | AA42: 1 | AB42: 1 | AC42: 1 | AZ42: 1 | BA42: =IF(AZ42=1,G42,0) -> 0 | BB42: =IF(AZ42=2,G42,0) -> 0 | BC42: =IF(AZ42=3,G42,0) -> 0 | BD42: =IF(AZ42=4,G42,0) -> 0 | BE42: =IF(AZ42=5,G42,0) -> 0 | CA42: 1 | CB42: 1
C43: ČOV - Obetonování konstrukce plastové nádrže pro dmychadlo: | E43: 0 | M43: ČOV - Obetonování konstrukce plastové nádrže pro dmychadlo:
C44: Dno:1,90*1,70*0,10*1,05 | E44: 0.3392 | M44: Dno:1,90*1,70*0,10*1,05
C45: Zabetonování vnitřního dna:1,40*1,20*0,15*1,05 | E45: 0.2646 | M45: Zabetonování vnitřního dna:1,40*1,20*0,15*1,05
C46: Stěny:(1,90+1,20)*2*1,215*0,25*1,05 | E46: 1.9774 | M46: Stěny:(1,90+1,20)*2*1,215*0,25*1,05
C47: Strop:1,90*1,70*0,15*1,05 | E47: 0.5087 | M47: Strop:1,90*1,70*0,15*1,05
B48: Celkem za | C48: 3 Svislé a kompletní konstrukce | G48: =SUM(G41:G47) -> 0 | I48: =SUM(I41:I47) -> 8.065504172 | K48: =SUM(K41:K47) -> 0 | O48: 4 | BA48: =SUM(BA41:BA47) -> 0 | BB48: =SUM(BB41:BB47) -> 0 | BC48: =SUM(BC41:BC47) -> 0 | BD48: =SUM(BD41:BD47) -> 0 | BE48: =SUM(BE41:BE47) -> 0
A49: Díl: | B49: 38 | C49: Kompletní konstrukce | O49: 1
A50: 10 | B50: 380361007R00 | C50: Výztuž kompletních konstr. ocel BSt 500B včetně KARI sítě 8/150 x 8/150 | D50: t | E50: 0.1179 | F50: 0 | G50: =E50*F50 -> 0 | H50: 1.02535 | I50: =E50*H50 -> 0.120888765 | J50: 0 | K50: =E50*J50 -> 0 | O50: 2 | AA50: 1 | AB50: 1 | AC50: 1 | AZ50: 1 | BA50: =IF(AZ50=1,G50,0) -> 0 | BB50: =IF(AZ50=2,G50,0) -> 0 | BC50: =IF(AZ50=3,G50,0) -> 0 | BD50: =IF(AZ50=4,G50,0) -> 0 | BE50: =IF(AZ50=5,G50,0) -> 0 | CA50: 1 | CB50: 1
C51: ČOV - Obetonování konstrukce plastové nádrže pro dmychadlo: | E51: 0 | M51: ČOV - Obetonování konstrukce plastové nádrže pro dmychadlo:
C52: Dno:1,90*1,70*0,0088*1,2 | E52: 0.0341 | M52: Dno:1,90*1,70*0,0088*1,2
C53: Stěny:(1,90+1,20)*2*1,215*0,0055*1,2 | E53: 0.0497 | M53: Stěny:(1,90+1,20)*2*1,215*0,0055*1,2
C54: Strop:1,90*1,70*0,0088*1,2 | E54: 0.0341 | M54: Strop:1,90*1,70*0,0088*1,2
B55: Celkem za | C55: 38 Kompletní konstrukce | G55: =SUM(G49:G54) -> 0 | I55: =SUM(I49:I54) -> 0.120888765 | K55: =SUM(K49:K54) -> 0 | O55: 4 | BA55: =SUM(BA49:BA54) -> 0 | BB55: =SUM(BB49:BB54) -> 0 | BC55: =SUM(BC49:BC54) -> 0 | BD55: =SUM(BD49:BD54) -> 0 | BE55: =SUM(BE49:BE54) -> 0
A56: Díl: | B56: 45 | C56: Podkladní a vedlejší konstrukce | O56: 1
A57: 11 | B57: 451572111R00 | C57: Lože pod potrubí z kameniva těženého 0 - 4 mm | D57: m3 | E57: 0.85 | F57: 0 | G57: =E57*F57 -> 0 | H57: 0.43051 | I57: =E57*H57 -> 0.3659335 | J57: 0 | K57: =E57*J57 -> 0 | O57: 2 | AA57: 1 | AB57: 1 | AC57: 1 | AZ57: 1 | BA57: =IF(AZ57=1,G57,0) -> 0 | BB57: =IF(AZ57=2,G57,0) -> 0 | BC57: =IF(AZ57=3,G57,0) -> 0 | BD57: =IF(AZ57=4,G57,0) -> 0 | BE57: =IF(AZ57=5,G57,0) -> 0 | CA57: 1 | CB57: 1
C58: ČOV - Potrubí:0,85 | E58: 0.85 | M58: ČOV - Potrubí:0,85
B59: Celkem za | C59: 45 Podkladní a vedlejší konstrukce | G59: =SUM(G56:G58) -> 0 | I59: =SUM(I56:I58) -> 0.3659335 | K59: =SUM(K56:K58) -> 0 | O59: 4 | BA59: =SUM(BA56:BA58) -> 0 | BB59: =SUM(BB56:BB58) -> 0 | BC59: =SUM(BC56:BC58) -> 0 | BD59: =SUM(BD56:BD58) -> 0 | BE59: =SUM(BE56:BE58) -> 0
A60: Díl: | B60: 8 | C60: Trubní vedení | O60: 1
A61: 12 | B61: 894412312RAB | C61: Šachta, DN 1000 stěna 120 mm, dno přímé V max. 50 hloubka dna 2,46 m poklop litina 40 t | D61: kus | E61: 1 | F61: 0 | G61: =E61*F61 -> 0 | H61: 3.71971 | I61: =E61*H61 -> 3.71971 | J61: 0 | K61: =E61*J61 -> 0 | O61: 2 | AA61: 1 | AB61: 1 | AC61: 1 | AZ61: 1 | BA61: =IF(AZ61=1,G61,0) -> 0 | BB61: =IF(AZ61=2,G61,0) -> 0 | BC61: =IF(AZ61=3,G61,0) -> 0 | BD61: =IF(AZ61=4,G61,0) -> 0 | BE61: =IF(AZ61=5,G61,0) -> 0 | CA61: 1 | CB61: 1
C62: V položce je zakalkulováno: dodávka a osazení betonového dna, betonové skruže, šachetního konusu, vyrovnávacího prstence vložení těsnění mezi dílce a itinového poklopu D400. | L62: V položce je zakalkulováno: dodávka a osazení betonového dna, betonové skruže, šachetního konusu, vyrovnávacího prstence vložení těsnění mezi dílce a itinového poklopu D400. | O62: 3
C63: Podbetonování šachtového dna betonem tl 15 cm. | L63: Podbetonování šachtového dna betonem tl 15 cm. | O63: 3
C64: V max. 50 vtok/výtok do max. DN 300. | L64: V max. 50 vtok/výtok do max. DN 300. | O64: 3
C65: Úprava šachtového dna pro osazení "Parshallova žlabu. | L65: Úprava šachtového dna pro osazení "Parshallova žlabu. | O65: 3
C66: Součástí položky je i úprava stávajícího odtokového potrubí PVC DN200 pro vsazení šachty. | L66: Součástí položky je i úprava stávajícího odtokového potrubí PVC DN200 pro vsazení šachty. | O66: 3
C67: Šachta na odtoku z ČOV pro osazení "Parshallova žlabu" DN1000:1 | E67: 1 | M67: Šachta na odtoku z ČOV pro osazení "Parshallova žlabu" DN1000:1
B68: Celkem za | C68: 8 Trubní vedení | G68: =SUM(G60:G67) -> 0 | I68: =SUM(I60:I67) -> 3.71971 | K68: =SUM(K60:K67) -> 0 | O68: 4 | BA68: =SUM(BA60:BA67) -> 0 | BB68: =SUM(BB60:BB67) -> 0 | BC68: =SUM(BC60:BC67) -> 0 | BD68: =SUM(BD60:BD67) -> 0 | BE68: =SUM(BE60:BE67) -> 0
A69: Díl: | B69: 99 | C69: Staveništní přesun hmot | O69: 1
A70: 13 | B70: 998142251R00 | C70: Přesun hmot, nádrže betonové monolit. výšky 25 m | D70: t | E70: 17.55273644 | F70: 0 | G70: =E70*F70 -> 0 | H70: 0 | I70: =E70*H70 -> 0 | K70: =E70*J70 -> 0 | O70: 2 | AA70: 7 | AB70: 1 | AC70: 2 | AZ70: 1 | BA70: =IF(AZ70=1,G70,0) -> 0 | BB70: =IF(AZ70=2,G70,0) -> 0 | BC70: =IF(AZ70=3,G70,0) -> 0 | BD70: =IF(AZ70=4,G70,0) -> 0 | BE70: =IF(AZ70=5,G70,0) -> 0 | CA70: 7 | CB70: 1
B71: Celkem za | C71: 99 Staveništní přesun hmot | G71: =SUM(G69:G70) -> 0 | I71: =SUM(I69:I70) -> 0 | K71: =SUM(K69:K70) -> 0 | O71: 4 | BA71: =SUM(BA69:BA70) -> 0 | BB71: =SUM(BB69:BB70) -> 0 | BC71: =SUM(BC69:BC70) -> 0 | BD71: =SUM(BD69:BD70) -> 0 | BE71: =SUM(BE69:BE70) -> 0
A72: Díl: | B72: 762 | C72: Konstrukce tesařské | O72: 1
A73: 14 | B73: 762521108RRX | C73: Odstranění a zpětná montáž zakrytí ČOV fošnami | D73: m2 | E73: 18 | F73: 0 | G73: =E73*F73 -> 0 | H73: 0 | I73: =E73*H73 -> 0 | J73: 0 | K73: =E73*J73 -> 0 | O73: 2 | AA73: 1 | AB73: 7 | AC73: 7 | AZ73: 2 | BA73: =IF(AZ73=1,G73,0) -> 0 | BB73: =IF(AZ73=2,G73,0) -> 0 | BC73: =IF(AZ73=3,G73,0) -> 0 | BD73: =IF(AZ73=4,G73,0) -> 0 | BE73: =IF(AZ73=5,G73,0) -> 0 | CA73: 1 | CB73: 7
B74: Celkem za | C74: 762 Konstrukce tesařské | G74: =SUM(G72:G73) -> 0 | I74: =SUM(I72:I73) -> 0 | K74: =SUM(K72:K73) -> 0 | O74: 4 | BA74: =SUM(BA72:BA73) -> 0 | BB74: =SUM(BB72:BB73) -> 0 | BC74: =SUM(BC72:BC73) -> 0 | BD74: =SUM(BD72:BD73) -> 0 | BE74: =SUM(BE72:BE73) -> 0
A75: Díl: | B75: 767 | C75: Konstrukce zámečnické | O75: 1
A76: 15 | B76: 767911120R00 | C76: Montáž oplocení z pletiva v.do 1,6 m,napínací drát | D76: m | E76: 10 | F76: 0 | G76: =E76*F76 -> 0 | H76: 0 | I76: =E76*H76 -> 0 | J76: 0 | K76: =E76*J76 -> 0 | O76: 2 | AA76: 1 | AB76: 7 | AC76: 7 | AZ76: 2 | BA76: =IF(AZ76=1,G76,0) -> 0 | BB76: =IF(AZ76=2,G76,0) -> 0 | BC76: =IF(AZ76=3,G76,0) -> 0 | BD76: =IF(AZ76=4,G76,0) -> 0 | BE76: =IF(AZ76=5,G76,0) -> 0 | CA76: 1 | CB76: 7
C77: ČOV - Montáž části stávajícího oplocení (bez sloupků):10,00 | E77: 10 | M77: ČOV - Montáž části stávajícího oplocení (bez sloupků):10,00
A78: 16 | B78: 767911821R00 | C78: Demontáž drátěného pletiva výšky do 1,6 m | D78: m | E78: 10 | F78: 0 | G78: =E78*F78 -> 0 | H78: 0 | I78: =E78*H78 -> 0 | J78: -0.00198 | K78: =E78*J78 -> -0.0198 | O78: 2 | AA78: 1 | AB78: 7 | AC78: 7 | AZ78: 2 | BA78: =IF(AZ78=1,G78,0) -> 0 | BB78: =IF(AZ78=2,G78,0) -> 0 | BC78: =IF(AZ78=3,G78,0) -> 0 | BD78: =IF(AZ78=4,G78,0) -> 0 | BE78: =IF(AZ78=5,G78,0) -> 0 | CA78: 1 | CB78: 7
C79: Demontáž oplocení pro opětovné použití | L79: Demontáž oplocení pro opětovné použití | O79: 3
C80: ČOV - Demontáž části stávajícího oplocení (bez sloupků):10,00 | E80: 10 | M80: ČOV - Demontáž části stávajícího oplocení (bez sloupků):10,00
B81: Celkem za | C81: 767 Konstrukce zámečnické | G81: =SUM(G75:G80) -> 0 | I81: =SUM(I75:I80) -> 0 | K81: =SUM(K75:K80) -> -0.0198 | O81: 4 | BA81: =SUM(BA75:BA80) -> 0 | BB81: =SUM(BB75:BB80) -> 0 | BC81: =SUM(BC75:BC80) -> 0 | BD81: =SUM(BD75:BD80) -> 0 | BE81: =SUM(BE75:BE80) -> 0
A82: Díl: | B82: M21Č | C82: Elektromontáže ČOV | O82: 1
A83: 17 | B83: M21 10-0001.ČOV | C83: D+M Elektroinstalace a telemetrie dle PD (Samostatná příloha) | D83: kpl | E83: 1 | F83: =SUM(M21Č_Elektroinstalace!G17) -> 0 | G83: =E83*F83 -> 0 | H83: 0 | I83: =E83*H83 -> 0 | K83: =E83*J83 -> 0 | O83: 2 | AA83: 11 | AB83: 3 | AC83: 1 | AZ83: 4 | BA83: =IF(AZ83=1,G83,0) -> 0 | BB83: =IF(AZ83=2,G83,0) -> 0 | BC83: =IF(AZ83=3,G83,0) -> 0 | BD83: =IF(AZ83=4,G83,0) -> 0 | BE83: =IF(AZ83=5,G83,0) -> 0 | CA83: 11 | CB83: 3
B84: Celkem za | C84: M21Č Elektromontáže ČOV | G84: =SUM(G82:G83) -> 0 | I84: =SUM(I82:I83) -> 0 | K84: =SUM(K82:K83) -> 0 | O84: 4 | BA84: =SUM(BA82:BA83) -> 0 | BB84: =SUM(BB82:BB83) -> 0 | BC84: =SUM(BC82:BC83) -> 0 | BD84: =SUM(BD82:BD83) -> 0 | BE84: =SUM(BE82:BE83) -> 0
A85: Díl: | B85: M35.4 | C85: Technologie ČOV | O85: 1
A86: 18 | B86: M34 40-0001.ČOV | C86: Výměna stávajícího dmychadla | D86: soubor | E86: 1 | F86: 0 | G86: =E86*F86 -> 0 | H86: 0 | I86: =E86*H86 -> 0 | K86: =E86*J86 -> 0 | O86: 2 | AA86: 11 | AB86: 3 | AC86: 6 | AZ86: 4 | BA86: =IF(AZ86=1,G86,0) -> 0 | BB86: =IF(AZ86=2,G86,0) -> 0 | BC86: =IF(AZ86=3,G86,0) -> 0 | BD86: =IF(AZ86=4,G86,0) -> 0 | BE86: =IF(AZ86=5,G86,0) -> 0 | CA86: 11 | CB86: 3
C87: Nové dmychadlo: | L87: Nové dmychadlo: | O87: 3
C88: Kubíček 3D19S-050K (1,1 kW, 50 Hz, 400 V, FM, PTC, EI3) vč. protihlukového krytu motoru a antikondenzačního vyhřívání motoru | L88: Kubíček 3D19T,S,A,B,C-050K (1,1 kW, 50 Hz, 400 V, FM, PTC, EI3) | O88: 3
C89: Součástí položky je kompletní výměna včetně všech pomocných prací a dodávek. | L89: Součástí položky je kompletní výměna včetně všech pomocných prací a dodávek. | O89: 3
A90: 19 | B90: M34 40-0002.ČOV | C90: D+M podzemního plastového protihlukového krytu Rozměr: 1400x1200x1200 mm | D90: soubor | E90: 1 | F90: 0 | G90: =E90*F90 -> 0 | H90: 0 | I90: =E90*H90 -> 0 | K90: =E90*J90 -> 0 | O90: 2 | AA90: 11 | AB90: 3 | AC90: 7 | AZ90: 4 | BA90: =IF(AZ90=1,G90,0) -> 0 | BB90: =IF(AZ90=2,G90,0) -> 0 | BC90: =IF(AZ90=3,G90,0) -> 0 | BD90: =IF(AZ90=4,G90,0) -> 0 | BE90: =IF(AZ90=5,G90,0) -> 0 | CA90: 11 | CB90: 3
C91: Provedení dle projektové dokumentace. | L91: Provedení dle projektové dokumentace. | O91: 3
C92: Součástí položky je dodávka vodotěsné plastové nádrže, vodotěsného poklopů, odvětrání a přídlušných potrubí pro propojení s objektem ČOV a odpadním potrubím (bez obetonování). Součástí položky je osazení vodotěsných průchodek pro elektroinstalaci. | L92: Součástí položky je dodávka vodotěsné plastové nádrže, vodotěsného poklopů, odvětrání a přídlušných potrubí pro propojení s objektem ČOV a odpadním potrubím (bez obetonování). Součástí položky je osazení vodotěsných průchodek pro elektroinstalaci. | O92: 3
A93: 20 | B93: M34 40-0003.ČOV | C93: D+M čerpadla úkapů HCP GDR 400 včetně potrubí DN25 | D93: soubor | E93: 1 | F93: 0 | G93: =E93*F93 -> 0 | H93: 0 | I93: =E93*H93 -> 0 | K93: =E93*J93 -> 0 | O93: 2 | AA93: 11 | AB93: 3 | AC93: 8 | AZ93: 4 | BA93: =IF(AZ93=1,G93,0) -> 0 | BB93: =IF(AZ93=2,G93,0) -> 0 | BC93: =IF(AZ93=3,G93,0) -> 0 | BD93: =IF(AZ93=4,G93,0) -> 0 | BE93: =IF(AZ93=5,G93,0) -> 0 | CA93: 11 | CB93: 3
A94: 21 | B94: M34 40-0004.ČOV | C94: D+M Parshallova žlabu včetně kalibrace Výrobce Pars Aqua s.r.o. Typ P | D94: soubor | E94: 1 | F94: 0 | G94: =E94*F94 -> 0 | H94: 0 | I94: =E94*H94 -> 0 | K94: =E94*J94 -> 0 | O94: 2 | AA94: 11 | AB94: 3 | AC94: 9 | AZ94: 4 | BA94: =IF(AZ94=1,G94,0) -> 0 | BB94: =IF(AZ94=2,G94,0) -> 0 | BC94: =IF(AZ94=3,G94,0) -> 0 | BD94: =IF(AZ94=4,G94,0) -> 0 | BE94: =IF(AZ94=5,G94,0) -> 0 | CA94: 11 | CB94: 3
C95: Výrobce Pars Aqua s.r.o. Typ P Qmin 0,26 l/s, Qmax 6,2 l/s. | L95: Výrobce Pars Aqua s.r.o. Typ P Qmin 0,26 l/s, Qmax 6,2 l/s. | O95: 3
C96: Součástí položky je provedení kalibrace žlabu autorizovanou osobou pro úřední měření průtoku. | L96: Součástí položky je provedení kalibrace žlabu autorizovanou osobou pro úřední měření průtoku. | O96: 3
A97: 22 | B97: M34 40-0005.ČOV | C97: D+M čerpadla oplachu pro ruční mytí Grundfos Unilift AP 35B.50.06.A1V, 230V, 1,0kW | D97: soubor | E97: 1 | F97: 0 | G97: =E97*F97 -> 0 | H97: 0 | I97: =E97*H97 -> 0 | K97: =E97*J97 -> 0 | O97: 2 | AA97: 11 | AB97: 3 | AC97: 10 | AZ97: 4 | BA97: =IF(AZ97=1,G97,0) -> 0 | BB97: =IF(AZ97=2,G97,0) -> 0 | BC97: =IF(AZ97=3,G97,0) -> 0 | BD97: =IF(AZ97=4,G97,0) -> 0 | BE97: =IF(AZ97=5,G97,0) -> 0 | CA97: 11 | CB97: 3
C98: Jedná se o dodávku a montáž uvedeného čerpadla včetně 10 m kabelů a ovládání dle projektové dokumentace. | L98: Jedná se o dodávku a montáž uvedeného čerpadla včetně 10 m kabelů a ovládání dle projektové dokumentace. | O98: 3
B99: Celkem za | C99: M35.4 Technologie ČOV | G99: =SUM(G85:G98) -> 0 | I99: =SUM(I85:I98) -> 0 | K99: =SUM(K85:K98) -> 0 | O99: 4 | BA99: =SUM(BA85:BA98) -> 0 | BB99: =SUM(BB85:BB98) -> 0 | BC99: =SUM(BC85:BC98) -> 0 | BD99: =SUM(BD85:BD98) -> 0 | BE99: =SUM(BE85:BE98) -> 0

Sheet M21Č_Elektroinstalace
C2: Akce : Chuchelna - výměna technologie ČOV
C3: Objekt : Elektročást
C4: Zak. č. : P194/24
C5: Datum : březen 2024
C8: Rekapitulace:
B10: 1 | C10: Rozváděč RMS 1 dle specifikace č. 1 | D10: 1 | E10: kpl. | F10: =G103 -> 0 | G10: =D10*F10 -> 0
B11: 2 | C11: Materiál pro MaR a telemetrii dle specifikace č. 2 | D11: 1 | E11: kpl. | F11: =G125 -> 0 | G11: 0
B12: 3 | C12: Elektromontážní materiál dle spacifikace č. 3 | D12: 1 | E12: kpl. | F12: =G164 -> 0 | G12: =D12*F12 -> 0
B13: 4 | C13: Elektromontážní práce dle speifikace č. 4 | D13: 1 | E13: kpl. | F13: =G173 -> 0 | G13: 0
B14: 5 | C14: Stavební a zámečnické práce dle specifikace č. 5 | D14: 1 | E14: kpl. | F14: =G182 -> 0 | G14: 0
B15: 6 | C15: Zemní práce dle specifikace č. 6 | D15: 1 | E15: kpl. | F15: =G196 -> 0 | G15: 0
B16: 7 | C16: Ostatní práce dle specifikace č. 7 | D16: 1 | E16: kpl. | F16: =G207 -> 0 | G16: 0
C17: Cena celkem bez DPH | G17: =SUM(G10:G16) -> 0
B19: 1 | C19: Specifikace č. 1 - Rozváděč RMS 1:
B20: pol. | C20: popis | D20: počet | E20: jedn. | F20: cena/jedn. | G20: cena celkem
B21: 1 | C21: skříň Schneider Thalassa, typ NSYPLM108G | D21: 1 | E21: ks | G21: =D21*F21 -> 0
B22: 2 | C22: montážní deska NSYMM108 | D22: 1 | E22: ks | G22: 0
B23: 3 | C23: sada závěsných úchytu NSYPFPLM | D23: 1 | E23: ks | G23: 0
B24: 4 | C24: kapsa na dokumentaci A4, NSYDPA4 | D24: 1 | E24: ks | G24: 0
B25: 5 | C25: ventilační mřížka NSYCAG125LPF | D25: 2 | E25: ks | G25: 0
B26: 6 | C26: hlavní vypínač VCF3, 400V, 3P, 63 A | D26: 1 | E26: ks | G26: 0
B27: 7 | C27: svodič přepětí FLP-12,5V/3 | D27: 1 | E27: ks | G27: 0
B28: 8 | C28: pojistkový odpínač třípólový, 32A, 10 x 38 mm | D28: 1 | E28: ks | G28: 0
B29: 9 | C29: pojistka válcová 10 x 38 mm, gG, 2A | D29: 3 | E29: ks | G29: 0
B30: 10 | C30: fázové relé RM17TG20 | D30: 1 | E30: ks | G30: 0
B31: 11 | C31: proudový chránič PF7-40/4/003-A | D31: 1 | E31: ks | G31: 0
B32: 12 | C32: proudový chránič s nadproud. spouští PFL7-10/1N/C//003-A | D32: 1 | E32: ks | G32: 0
B33: 13 | C33: proudový chránič s nadproud. spouští PFL7-16/1N/C//003-A | D33: 1 | E33: ks | G33: 0
B34: 14 | C34: jistič iC60H 1P 2A C | D34: 3 | E34: ks | G34: 0
B35: 15 | C35: jistič iC60H 1P 4A C | D35: 1 | E35: ks | G35: 0
B36: 16 | C36: jistič iC60H 1P 6A C | D36: 3 | E36: ks | G36: 0
B37: 17 | C37: jistič iC60H 1P 6A D | D37: 2 | E37: ks | G37: 0
B38: 18 | C38: jistič iC60H 1P 10A C | D38: 2 | E38: ks | G38: 0
B39: 19 | C39: jistič iC60H 1P 16A C | D39: 1 | E39: ks | G39: 0
B40: 20 | C40: jistič iC60H 3P 16A C | D40: 1 | E40: ks | G40: 0
B41: 21 | C41: pomocný kontakt iOF | D41: 2 | E41: ks | G41: 0
B42: 22 | C42: zásuvka 250V/16A na DIN lištu, iPC | D42: 1 | E42: ks | G42: 0
B43: 23 | C43: termostat na DIN lištu, NSYCCOTHC | D43: 1 | E43: ks | G43: 0
B44: 24 | C44: topné tělísko na DIN lištu NSYCR50WU2C | D44: 1 | E44: ks | G44: 0
B45: 25 | C45: ochranný jistič GV2L10 | D45: 1 | E45: ks | G45: 0
B46: 26 | C46: motorový spínač GV2P08, 2,5 - 4 A | D46: 2 | E46: ks | G46: 0
B47: 27 | C47: pomocný kontakt GVAN 11 | D47: 2 | E47: ks | G47: 0
B48: 28 | C48: stykač LC1D09P7 | D48: 2 | E48: ks | G48: 0
B49: 29 | C49: pomocné relé RSB2A080BDPV | D49: 4 | E49: ks | G49: 0
B50: 30 | C50: frekvenční měnič ATV320U30N4B, 3 kW | D50: 1 | E50: ks | G50: 0
B51: 31 | C51: ovládač Harmony, typ XB5AD33 kpl, | D51: 3 | E51: ks | G51: 0
B52: 32 | C52: spínací jednotka ZBE101 | D52: 4 | E52: ks | G52: 0
B53: 33 | C53: signálka Harmony XB5AVB1 kpl, | D53: 3 | E53: ks | G53: 0
B54: 34 | C54: signálka Harmony XB5AVB4 kpl. | D54: 3 | E54: ks | G54: 0
B55: 35 | C55: zdroj 24 V DC, ABLS1A24031, 3,13A, 75W | D55: 1 | E55: ks | G55: 0
B56: 36 | C56: zdroj DRC- 60A, 13,8V/2,8A | D56: 1 | E56: ks | G56: 0
B57: 37 | C57: baterie SA-214/1,3, 12V, 1,3A | D57: 1 | E57: ks | G57: 0
B58: 38 | C58: držák trubičkových pojistek WSI 4 | D58: 7 | E58: ks | G58: 0
B59: 39 | C59: pojistka trubičková F 100 mA | D59: 6 | E59: ks | G59: 0
B60: 40 | C60: pojistka trubičková T 2 A | D60: 1 | E60: ks | G60: 0
B61: 41 | C61: PLC Modicon M221, 230 V 40 I/O, Ethernet, TM221CE40R | D61: 1 | E61: ks | G61: 0
B62: 42 | C62: zásuvný modul RS 242/485 pro PLC TN2X1, TMC2SL1 | D62: 1 | E62: ks | G62: 0
B63: 43 | C63: paměťová karta TMA SD1 | D63: 1 | E63: ks | G63: 0
B64: 44 | C64: modul 4 analogových vstupů a 2 analogových výstupů TM3AM6G | D64: 1 | E64: ks | G64: 0
B65: 45 | C65: grafický panel Magelis s dotykovou obrazovkou, HMI ST6400 | D65: 1 | E65: ks | G65: 0
B66: 46 | C66: switch MCSESU053FN0 | D66: 1 | E66: ks | G66: 0
B67: 47 | C67: radiový modem MC14DV | D67: 1 | E67: ks | G67: 0
B68: 48 | C68: radiostanice Motorola Mototrbo DM1400 VHF | D68: 1 | E68: ks | G68: 0
B69: 49 | C69: držák radiostanice | D69: 1 | E69: ks | G69: 0
B70: 50 | C70: propojovací kabel 80 cm radiostanice – modem DB15FM | D70: 1 | E70: ks | G70: 0
B71: 51 | C71: prop. kabel Magelis COM1 (RJ45) a Modicon (RJ45), XBT Z9980 | D71: 2 | E71: ks | G71: 0
B72: 52 | C72: propojovací kabel PLC – modem, RS 485 | D72: 1 | E72: ks | G72: 0
B73: 53 | C73: svorka řadová RSA 16 hnědá | D73: 3 | E73: ks | G73: 0
B74: 54 | C74: svorka dvojitá OTL 35-2 zž | D74: 1 | E74: ks | G74: 0
B75: 55 | C75: svorka řadová RSA 4 bílá | D75: 16 | E75: ks | G75: 0
B76: 56 | C76: svorka řadová RSA 4 gobi | D76: 5 | E76: ks | G76: 0
B77: 57 | C77: svorka řadová RSA 4 sm | D77: 11 | E77: ks | G77: 0
B78: 58 | C78: svorka řadová RSA 4 PE | D78: 13 | E78: ks | G78: 0
B79: 59 | C79: svorka řadová RSA 2,5 tm | D79: 30 | E79: ks | G79: 0
B80: 60 | C80: svorka řadová RSA 2,5 PE | D80: 7 | E80: ks | G80: 0
B81: 61 | C81: hřeben dvoupólový RSA 2,5 | D81: 2 | E81: ks | G81: 0
B82: 62 | C82: hřeben čtyřpólový RSA 2,5 | D82: 2 | E82: ks | G82: 0
B83: 63 | C83: svorka koncová na DIN lištu | D83: 12 | E83: ks | G83: 0
B84: 64 | C84: přípojnice N 15, IP 20 | D84: 2 | E84: ks | G84: 0
B85: 65 | C85: přípojnice PE 15, IP 20 | D85: 2 | E85: ks | G85: =D85*F85 -> 0
B86: 66 | C86: vývodka Bimed Pg 21 | D86: 1 | E86: ks | G86: 0
B87: 67 | C87: matice Bimed Pg 21 | D87: 1 | E87: ks | G87: 0
B88: 68 | C88: vývodka Bimed Pg 16 | D88: 1 | E88: ks | G88: 0
B89: 69 | C89: matice Bimed Pg 16 | D89: 1 | E89: ks | G89: 0
B90: 70 | C90: vývodka Bimed Pg 13,5 | D90: 8 | E90: ks | G90: 0
B91: 71 | C91: matice Bimed Pg 13,5 | D91: 8 | E91: ks | G91: 0
B92: 72 | C92: vývodka Bimed Pg 11 | D92: 8 | E92: ks | G92: 0
B93: 73 | C93: ucpávka Bimed Pz 11 | D93: 5 | E93: ks | G93: 0
B94: 74 | C94: matice Bimed Pg 11 | D94: 13 | E94: ks | G94: 0
B95: 75 | C95: elektroinstalační žlaby 40 x 60 mm děrované pro vodiče | D95: 6 | E95: ks | G95: 0
B96: 76 | C96: DIN lišta TS35 | D96: 5 | E96: ks | G96: 0
B97: 77 | C97: podpěra DIN lišty šikmá | D97: 6 | E97: ks | G97: 0
B98: 78 | C98: sada popisných a výstražných štítků | D98: 1 | E98: ks | G98: 0
C99: základní materiál celkem | G99: =SUM(G21:G98) -> 0
B100: 79 | C100: materiál pomocný (vodiče, koncovky, popisy, bužírky apod.) | D100: 4 | E100: % | F100: =G99 -> 0 | G100: =F100*D100/100 -> 0
C101: materiál celkem | G101: =SUM(G99:G100) -> 0
B102: 80 | C102: výroba rozváděče | D102: 16 | E102: % | F102: =G101 -> 0 | G102: =D102*F102/100 -> 0
C103: Rozváděč RMS 1 celkem | G103: =SUM(G101:G102) -> 0
B105: 2 | C105: Specifikace č. 2 - Materiál pro MaR a telemetrii:
B106: pol. | C106: popis | D106: počet | E106: jedn. | F106: cena/jedn. | G106: cena celkem
B107: 1 | C107: LDO optický kyslíková sonda Hach-Lange s kabelem 10 m (O2 + T) | D107: 1 | E107: ks | G107: =D107*F107 -> 0
B108: 2 | C108: kontroler Hach-Lange SC4500 | D108: 1 | E108: ks | G108: 0
B109: 3 | C109: nerezový kryt kontroleru | D109: 1 | E109: ks | G109: 0
B110: 4 | C110: nerezová ponorná řetězová armatura do 5ti metrů se závěsem | D110: 1 | E110: ks | G110: 0
B111: 5 | C111: průtokoměr Fiedler pro otevřené profily, typ Q2U-TB3-B | D111: 1 | E111: ks | G111: 0
B112: 6 | C112: sonda měření průtoku Fiedler, typ US 1200 na Parshalův žlab PAZ2 | D112: 1 | E112: ks | G112: 0
B113: 7 | C113: držák sondy | D113: 1 | E113: ks | G113: 0
B114: 8 | C114: nosná konstrukce na Parshallův žlab P2 | D114: 1 | E114: ks | G114: 0
B115: 9 | C115: plovák maximální hladiny NLN-105-1 | D115: 1 | E115: ks | G115: 0
B116: 10 | C116: koncový spínač SA 204 | D116: 3 | E116: ks | G116: 0
B117: 11 | C117: anténa ZZ 203 | D117: 1 | E117: ks | G117: 0
B118: 12 | C118: držák základnové antény Z3001 | D118: 1 | E118: ks | G118: 0
B119: 13 | C119: N konektor na kabel 10 mm šroubovací (RG213) | D119: 1 | E119: ks | G119: 0
B120: 14 | C120: konektor BNC na kabel RG213 | D120: 1 | E120: ks | G120: 0
B121: 15 | C121: koaxiální kabel RG 213U | D121: 8 | E121: m | G121: 0
B122: 16 | C122: anténní stožár nerez, trubka 50/2 – 3 m s držáky – viz výkres D.1.5 | D122: 1 | E122: kpl. | G122: 0
C123: základní materiál celkem | G123: =SUM(G107:G122) -> 0
B124: 17 | C124: materiál pomocný | D124: 3 | E124: % | F124: =G123 -> 0 | G124: =F124*D124/100 -> 0
C125: Materiál pro MaR a telemetrii celkem | G125: =SUM(G123:G124) -> 0
B127: 3 | C127: Specifikace č. 3 - Elektromontážní materiál:
B128: pol. | C128: popis | D128: počet | E128: jedn. | F128: cena/jedn. | G128: cena celkem
B129: 1 | C129: LED svítidlo nástěnné 230V/20W/IP55 | D129: 6 | E129: ks | G129: =D129*F129 -> 0
B130: 2 | C130: LED svítidlo nástěnné 230V/50W/IP55 | D130: 1 | E130: ks | G130: =D130*F130 -> 0
B131: 3 | C131: vypínač nástěnný na hořlavý podklad 250V/10A/IP44 | D131: 2 | E131: ks | G131: 0
B132: 4 | C132: zásuvka nástěnná 400V/16A/IP44 | D132: 1 | E132: ks | G132: 0
B133: 5 | C133: zásuvka nástěnná na hořlavý podklad 250V/16A/IP44 | D133: 2 | E133: ks | G133: 0
B134: 6 | C134: skříňka nástěnná na hořlavý podklad s vypínačem 2P a zásuvkou, 250V/16A/IP44 | D134: 1 | E134: ks | G134: 0
B135: 7 | C135: ekvipotenciální přípojnice HOP | D135: 1 | E135: ks | G135: 0
B136: 8 | C136: kabel LiYCY 2x 0,75 mm2 | D136: 3 | E136: m | G136: 0
B137: 9 | C137: kabel LiYCY 7x 0,75 mm2 | D137: 15 | E137: m | G137: 0
B138: 10 | C138: kabel JYTY 2x 1 | D138: 23 | E138: m | G138: 0
B139: 11 | C139: kabel stíněný 2YSLCY-JB 4G 1,5 | D139: 14 | E139: m | G139: 0
B140: 12 | C140: kabel CYKY-O 3x 1,5 | D140: 6 | E140: m | G140: 0
B141: 13 | C141: kabel CYKY-J 3x 1,5 | D141: 55 | E141: m | G141: 0
B142: 14 | C142: kabel CYKY-J 3x 2,5 | D142: 52 | E142: m | G142: 0
B143: 15 | C143: kabel CYKY-J 5x 1,5 | D143: 15 | E143: m | G143: 0
B144: 16 | C144: kabel CYKY-J 5x 2,5 | D144: 4 | E144: m | G144: 0
B145: 17 | C145: kabel CYKY-J 7x 1,5 | D145: 24 | E145: m | G145: 0
B146: 18 | C146: kabel TCEPKPFLE 1x4x0,8 | D146: 16 | E146: m | G146: 0
B147: 19 | C147: chránička elektroinstalační plastová tuhá 25 mm vč. tvarovek a příchytek | D147: 57 | E147: m | G147: 0
B148: 20 | C148: chránička elektroinstalační plastová ohebná 22 mm | D148: 16 | E148: m | G148: 0
B149: 21 | C149: krabice plastová odbočná nástěnná, IP55 | D149: 10 | E149: ks | G149: 0
B150: 22 | C150: vodič CY 6 zelenožlutý | D150: 32 | E150: m | G150: 0
B151: 23 | C151: vodič CY 10 zelenožlutý | D151: 3 | E151: m | G151: 0
B152: 24 | C152: svorka ochranného pospojování | D152: 10 | E152: ks | G152: 0
B153: 25 | C153: chránička Kopoflex 63/52 | D153: 38 | E153: m | G153: 0
B154: 26 | C154: chránička Kopoflex 40/32 | D154: 35 | E154: m | G154: 0
B155: 27 | C155: FeZn drát průměr 10 mm | D155: 12 | E155: m | G155: 0
B156: 28 | C156: svorka SR 03 FeZn izolovaná | D156: 4 | E156: ks | G156: 0
B157: 29 | C157: svorka ST5 FeZn | D157: 1 | E157: ks | G157: 0
B158: 30 | C158: svorka SZ FeZn | D158: 1 | E158: ks | G158: 0
B159: 31 | C159: ochranná trubka svodu s držáky | D159: 1 | E159: ks | G159: 0
B160: 32 | C160: označovací štítek svodu | D160: 1 | E160: ks | G160: 0
B161: 33 | C161: plastová zakrývací deska 150 x 1000 mm | D161: 36 | E161: ks | G161: 0
C162: základní materiál celkem | G162: =SUM(G129:G161) -> 0
B163: 34 | C163: materiál pomocný | D163: 5 | E163: % | F163: =G162 -> 0 | G163: =F163*D163/100 -> 0
C164: Elektromontážní materiál celkem | G164: =SUM(G162:G163) -> 0
B166: 4 | C166: Specifikace č. 4 - Elektromontážní práce:
B167: pol. | C167: popis | D167: počet | E167: jedn. | F167: cena/jedn. | G167: cena celkem
B168: 1 | C168: demontáže stávajícího elektrozařízení | D168: 16 | E168: hod. | G168: =D168*F168 -> 0
B169: 2 | C169: elektromontážní práce | D169: 120 | E169: hod. | G169: =D169*F169 -> 0
B170: 3 | C170: zajištění provizorního provozu po dobu provádění prací | D170: 16 | E170: hod. | G170: =D170*F170 -> 0
C171: Součet | G171: =SUM(G168:G170) -> 0
B172: 4 | C172: PPV | D172: 6 | E172: % | F172: =G171 -> 0 | G172: =F172*D172/100 -> 0
C173: Elektromontážní práce celkem | G173: =SUM(G171:G172) -> 0
B175: 5 | C175: Specifikace č. 5 - Stavební a zámečnické práce:
B176: pol. | C176: popis | D176: počet | E176: jedn. | F176: cena/jedn. | G176: cena celkem
B177: 1 | C177: pilíř elektro kpl. – viz výkres D.1.5 | D177: 1 | E177: kpl. | G177: =D177*F177 -> 0
B178: 2 | C178: provedení prostupu do betonu průměru 40 mm a tloušťky 200 mm se zatěsněním proti vnikání vlhkosti | D178: 1 | E178: ks | G178: =D178*F178 -> 0
B179: 3 | C179: demontáž stávajícího elektropilíře včetně provizorního přepojení | D179: 1 | E179: soubor | G179: =D179*F179 -> 0
C180: Součet | G180: =SUM(G177:G179) -> 0
B181: 4 | C181: PPV | D181: 6 | E181: % | F181: =G180 -> 0 | G181: =F181*D181/100 -> 0
C182: Stavební a zámečnické práce celkem | G182: =SUM(G180:G181) -> 0
B184: 6 | C184: Specifikace č. 6 - Zemní práce:
B185: pol. | C185: popis | D185: počet | E185: jedn. | F185: cena/jedn. | G185: cena celkem
B186: 1 | C186: vytýčení trasy výkopů | D186: 26 | E186: m | G186: =D186*F186 -> 0
B187: 2 | C187: vytýčení stávajících podzemních sítí | D187: 1 | E187: kpl. | G187: 0
B188: 3 | C188: výkop 1,8 x 0,8 x 1 m pro základ pilíře elektro | D188: 1.44 | E188: m3 | G188: 0
B189: 4 | C189: výkop 35 x 70 cm | D189: 26 | E189: m | G189: 0
B190: 5 | C190: kabelové lože 2x 10 cm s dodáním písku | D190: 26 | E190: m | G190: 0
B191: 6 | C191: zához rýhy 35 x 50 cm | D191: 26 | E191: m | G191: 0
B192: 7 | C192: rozprostření přebytečné zeminy v místě stavby | D192: 3 | E192: m3 | G192: 0
B193: 8 | C193: úprava povrchu rýhy s osetím | D193: 13 | E193: m2 | G193: 0
C194: Součet | G194: =SUM(G186:G193) -> 0
B195: 9 | C195: PPV | D195: 6 | E195: % | F195: =G194 -> 0 | G195: =F195*D195/100 -> 0
C196: Zemní práce celkem | G196: =SUM(G194:G195) -> 0
B198: 7 | C198: Specifikace č. 7 - Ostatní práce:
B199: pol. | C199: popis | D199: počet | E199: jedn. | F199: cena/jedn. | G199: cena celkem
B200: 1 | C200: zprovoznění měření rozpuštěného kyslíku technikem Hach-Lange | D200: 1 | E200: ks | G200: =D200*F200 -> 0
B201: 2 | C201: provedení výchozí revize elektrického zařízení a uzemnění | D201: 1 | E201: ks | G201: 0
B202: 3 | C202: zajištění stanoviska TIČR | D202: 1 | E202: ks | G202: 0
B203: 4 | C203: ostatní nespecifikované práce | D203: 16 | E203: hod. | G203: 0
B204: 5 | C204: zpracování dokumentace skutečného provedení | D204: 1 | E204: kpl. | G204: 0
B205: 6 | C205: vypracování software, jeho aplikace a zprovoznění komunikace s dispečinkem | D205: 1 | E205: kpl. | G205: 0
B206: 7 | C206: geodetické zaměření kabelových tras | D206: 26 | E206: m | G206: 0
C207: Ostatní práce celkem | G207: =SUM(G200:G206) -> 0

Sheet OaVNS
A1: Položkový rozpočet
A3: Stavba : | C3: 3391 Chuchelna - výměna technologie ČOV | E3: Rozpočet: | F3: OaVNS
A4: Objekt : | C4: OaVNS - Ostatní a vedlejší náklady stavby
A6: P.č. | B6: Číslo položky | C6: Název položky | D6: MJ | E6: množství | F6: cena / MJ | G6: celkem (Kč) | H6: Jednotková hmotnost | I6: Celková hmotnost | J6: Jednotková dem.hmot. | K6: Celková dem.hmot.
A7: Díl: | B7: 950 | C7: Ostatní náklady stavby
A8: 1 | B8: 950 99-0001.ONS | C8: Zajištění prostoru a vybudování zařízení staveniště včetně potřebných staveništních komunikací | D8: soubor | E8: 1 | G8: =SUM(E8*F8) -> 0 | H8: 0.00869 | I8: =E8*H8 -> 0.00869 | J8: 0 | K8: =E8*J8 -> 0 | BN8: 1 | BO8: 1
A9: 2 | B9: 950 99-0003.ONS | C9: Zajištění bezpečnosti při provádění stavby ve smyslu bezpečnosti práce i ochrany životního prostředí a zeleně | D9: soubor | E9: 1 | G9: =SUM(E9*F9) -> 0
A10: 3 | B10: 950 99-0005.ONS | C10: Vytýčení stavby a hranic pozemků při provádění stavby | D10: soubor | E10: 1 | G10: 0
A11: 4 | B11: 950 99-0013.ONS | C11: Zajištění činnosti odpovědného geodeta zhotovitele | D11: soubor | E11: 1 | G11: 0
A12: 5 | B12: 950 99-0015.ONS | C12: Zajištění čistoty na staveništi a v jeho okolí, zajištění každodenního čištění komunikací dotčených provozem zhotovitele | D12: soubor | E12: 1 | G12: 0
A13: 6 | B13: 950 99-0016.ONS | C13: Fotodokumentace průběhu díla; zhotovitel zajistí a předá objednateli průběžnou fotodokumentaci realizace díla. Fotodokumentace bude dokladovat průběh díla a bude zejména dokumentovat části stavby a konstrukce před jejich zakrytím | D13: soubor | E13: 1 | G13: 0
A14: 7 | B14: 950 99-0017.ONS | C14: Péče o nepředané objekty nebo jejich části a konstrukce stavby, jejich ošetřování a nutný rozsah pojištění | D14: soubor | E14: 1 | G14: 0 | H14: 0 | I14: =E14*H14 -> 0 | J14: 0 | K14: =E14*J14 -> 0 | BN14: 1 | BO14: 1
A15: 8 | B15: 950 99-0021.ONS | C15: Inženýrská a kompletační činnost zhotovitele | D15: soubor | E15: 1 | G15: 0
A16: 9 | B16: 950 99-0022.ONS | C16: Zhotovení dokumentace skutečného provedení díla | D16: soubor | E16: 1 | G16: 0
A17: 10 | B17: 950 99-0023.ONS | C17: Geodetické zaměření stavby | D17: soubor | E17: 1 | G17: 0
A18: 11 | B18: 950 99-0026.ONS | C18: Vyvážení splašků z objeku ČOV před zahájením prací a během realizace s odvozem na ČOV Semily (cisterna) . | D18: m3 | E18: 300 | G18: 0
B19: 950 99-0027.ONS | C19: Zpracování provozního řádu ČOV | D19: soubor | E19: 1 | G19: 0
A20: 12 | B20: 950 99-0028.ONS | C20: Ostatní činnosti nutné ke zdárnému provedení díla, které jsou vymezeny zejména v technické specifikaci stavby | D20: soubor | E20: 1 | G20: 0
B22: ONS Celkem | G22: =SUM(G8:G20) -> 0
